fUST/lending_fUST_20250911
["ID","MTS","AMOUNT","RATE_DAILY","PERIOD"]
[384808837,1757566244983,-480.0,0.0001391,2]
[384808838,1757566244992,-480.0,0.0001391,2]
[384808839,1757566245002,-480.0,0.0001391,2]
[384808840,1757566245011,-200.0,0.0001391,2]
[384808841,1757566245021,-480.0,0.0001391,2]
[384808842,1757566245030,-480.0,0.0001391,2]
[384808843,1757566245039,-480.0,0.0001391,2]
[384808844,1757566245048,-470.95757988,0.0001391,2]
[384808845,1757566245057,-480.0,0.0001391,2]
[384808846,1757566245067,-480.0,0.0001391,2]
[384808847,1757566245076,-480.0,0.0001391,2]
[384808848,1757566245085,-480.0,0.0001391,2]
[384808849,1757566245095,-480.0,0.0001391,2]
[384808850,1757566245104,-480.0,0.0001391,2]
[384808851,1757566245114,-545.27,0.0001391,2]
[384808852,1757566245123,-545.27,0.0001391,2]
[384808853,1757566245132,-545.27,0.0001391,2]
[384808854,1757566245142,-545.27,0.0001391,2]
[384808855,1757566245151,-270.65840242,0.0001391,2]
[384808856,1757566245160,-480.0,0.0001391,2]
[384808857,1757566245170,-151.0,0.0001391,2]
[384808858,1757566245180,-151.0,0.0001391,2]
[384808859,1757566245189,-480.0,0.0001391,2]
[384808860,1757566245198,-170.68891,0.0001391,2]
[384808861,1757566245211,-170.68891,0.0001391,2]
[384808862,1757566245220,-170.68891,0.0001391,2]
[384808863,1757566245229,-170.68891,0.0001391,2]
[384808864,1757566245239,-151.0,0.0001391,2]
[384808865,1757566245248,-480.0,0.0001391,2]
[384808866,1757566245259,-151.0,0.0001391,2]
[384808867,1757566245268,-151.0,0.0001391,2]
[384808868,1757566245278,-151.0,0.0001391,2]
[384808869,1757566245288,-151.0,0.0001391,2]
[384808870,1757566245297,-483.1907906,0.0001391,2]
[384808871,1757566245307,-151.0,0.0001391,2]
[384808872,1757566245316,-151.0,0.0001391,2]
[384808873,1757566245325,-480.0,0.0001391,2]
[384808874,1757566245335,-480.0,0.0001391,2]
[384808875,1757566245344,-480.0,0.0001391,2]
[384808876,1757566245353,-151.0,0.0001391,2]
[384808877,1757566245362,-151.0,0.0001391,2]
[384808878,1757566245371,-480.0,0.0001391,2]
[384808879,1757566245381,-480.0,0.00013911,2]
[384808880,1757566245391,-482.55745651,0.00013911,2]
[384808881,1757566245401,-480.0,0.00013911,2]
[384808882,1757566245411,-480.0,0.00013911,2]
[384808883,1757566245420,-480.0,0.00013911,2]
[384808884,1757566245430,-480.0,0.00013911,2]
[384808885,1757566245440,-571.46328339,0.00013911,2]
[384808886,1757566245449,-152.123823,0.00013911,2]
[384808887,1757566245459,-480.0,0.00013911,2]
[384808888,1757566245468,-151.745988,0.00013911,2]
[384808889,1757566245478,-480.0,0.00013911,2]
[384808890,1757566245487,-480.0,0.00013911,2]
[384808892,1757566245497,-480.0,0.00013911,2]
[384808893,1757566245506,-483.303648,0.00013911,2]
[384808894,1757566245516,-480.0,0.00013911,2]
[384808895,1757566245526,-480.0,0.00013911,2]
[384808896,1757566245536,-482.30943507,0.00013911,2]
[384808897,1757566245546,-481.45695243,0.00013911,2]
[384808898,1757566245556,-481.11161949,0.00013911,2]
[384808899,1757566245565,-486.18744722,0.00013911,2]
[384808900,1757566245575,-481.64495487,0.00013911,2]
[384808901,1757566245585,-482.48984119,0.00013911,2]
[384808902,1757566245595,-480.0,0.00013911,2]
[384808903,1757566245604,-480.0,0.00013911,2]
[384808904,1757566245614,-481.74014437,0.00013911,2]
[384808905,1757566245623,-480.0,0.00013911,2]
[384808906,1757566245633,-545.27,0.00013911,2]
[384808907,1757566245643,-151.0,0.00013911,2]
[384808908,1757566245652,-151.0,0.00013911,2]
[384808909,1757566245662,-170.68891,0.00013911,2]
[384808910,1757566245672,-170.68891,0.00013911,2]
[384808911,1757566245681,-170.68891,0.00013911,2]
[384808912,1757566245691,-170.68891,0.00013911,2]
[384808913,1757566245700,-151.0,0.00013911,2]
[384808914,1757566245710,-203.469089,0.00013911,2]
[384808915,1757566245720,-151.0,0.00013911,2]
[384808916,1757566245730,-151.0,0.00013911,2]
[384808917,1757566245740,-151.0,0.00013911,2]
[384808918,1757566245749,-151.0,0.00013911,2]
[384808919,1757566245760,-151.0,0.00013911,2]
[384808920,1757566245769,-151.0,0.00013911,2]
[384808921,1757566245779,-151.0,0.00013911,2]
[384808922,1757566245788,-2677.12,0.00013914,2]
[384808923,1757566245797,-545.27,0.00013915,2]
[384808925,1757566245807,-545.27,0.00013915,2]
[384808926,1757566245816,-545.27,0.00013915,2]
[384808927,1757566245829,-151.0,0.00013915,2]
[384808928,1757566245839,-151.0,0.00013915,2]
[384808929,1757566245848,-170.68891,0.00013915,2]
[384808930,1757566245858,-170.68891,0.00013915,2]
[384808931,1757566245868,-170.68891,0.00013915,2]
[384808932,1757566245877,-170.68890684,0.00013915,2]
[384808933,1757566245887,-151.0,0.00013915,2]
[384808934,1757566245896,-500.0,0.00013915,2]
[384808935,1757566245906,-545.27,0.00013919,2]
[384808936,1757566245916,-545.27,0.0001392,2]
[384808937,1757566245926,-25603.6902081,0.00013921,2]
[384808939,1757566245935,-151.0,0.00013921,2]
[384808941,1757566245946,-151.0,0.00013921,2]
[384808942,1757566245955,-151.0,0.00013921,2]
[384808943,1757566245964,-151.0,0.00013921,2]
[384808944,1757566245975,-198.593168,0.00013921,2]
[384808945,1757566245984,-151.0,0.00013921,2]
[384808946,1757566245994,-2105.41764886,0.0001395,2]
[384808947,1757566246003,-754.591137,0.00013972,2]
[384808948,1757566246012,-267.038189,0.00013972,2]
[384808949,1757566246022,-500.4603236,0.00013973,2]
[384808950,1757566246031,-500.0,0.00013973,2]
[384808951,1757566246041,-502.5421363,0.00013973,2]
[384808952,1757566246050,-501.15577929,0.00013973,2]
[384808953,1757566246059,-500.0,0.00013973,2]
[384808954,1757566246069,-500.0,0.00013973,2]
[384808955,1757566246078,-500.0,0.00013973,2]
[384808956,1757566246178,-500.0,0.00013973,2]
[384808957,1757566246188,-1532.48666018,0.0001399,2]
[384808958,1757566246197,-2183.31810187,0.00014005,2]
[384808959,1757566246207,-545.27,0.00014012,2]
[384808960,1757566246218,-1739.66669947,0.0001406,2]
[384808961,1757566246228,-500.0,0.00014173,2]
[384808962,1757566246237,-500.0,0.00014173,2]
[384808963,1757566246247,-550.94826007,0.00014173,2]
[384808964,1757566246257,-500.0,0.00014173,2]
[384808965,1757566246267,-500.0,0.00014173,2]
[384808966,1757566246277,-500.0,0.00014173,2]
[384808967,1757566246287,-500.0,0.00014173,2]
[384808968,1757566246297,-324.28321046,0.00014173,2]
[384808969,1757566246307,-500.0,0.00014173,2]
[384808970,1757566246316,-500.0,0.00014173,2]
[384808971,1757566246326,-501.08273848,0.00014173,2]
[384808972,1757566246335,-500.79205271,0.00014173,2]
[384808973,1757566246345,-500.0,0.00014173,2]
[384808975,1757566246354,-500.0,0.00014173,2]
[384808976,1757566246364,-503.39143857,0.00014173,2]
[384808977,1757566246374,-500.0,0.00014173,2]
[384808978,1757566246384,-500.0,0.00014173,2]
[384808979,1757566246394,-153.23737047,0.00014173,2]
[384808980,1757566246404,-500.0,0.00014173,2]
[384808981,1757566246414,-500.74369775,0.00014173,2]
[384808982,1757566246423,-480.0,0.00014174,2]
[384808983,1757566246433,-480.0,0.00014174,2]
[384808984,1757566246443,-485.37,0.00014174,2]
[384808985,1757566246453,-275.09090006,0.00014174,2]
[384808986,1757566246463,-4340.54,0.00014174,2]
[384808987,1757566246472,-480.0,0.00014175,2]
[384808988,1757566246482,-414.80746801,0.00014175,2]
[384808989,1757566246492,-480.0,0.00014175,2]
[384808990,1757566246501,-480.0,0.00014175,2]
[384808991,1757566246511,-480.0,0.00014175,2]
[384808992,1757566246520,-480.0,0.00014175,2]
[384808993,1757566246530,-480.0,0.00014175,2]
[384808994,1757566246541,-485.1450466,0.00014175,2]
[384808995,1757566246551,-480.0,0.00014175,2]
[384808996,1757566246560,-480.0,0.00014175,2]
[384808997,1757566246570,-480.0,0.00014175,2]
[384808998,1757566246580,-480.0,0.00014175,2]
[384808999,1757566246589,-480.0,0.00014175,2]
[384809000,1757566246599,-544.97236515,0.00014175,2]
[384809001,1757566246608,-480.0,0.00014175,2]
[384809002,1757566246617,-484.41904844,0.00014175,2]
[384809003,1757566246627,-480.0,0.00014175,2]
[384809004,1757566246637,-486.4080932,0.00014175,2]
[384809005,1757566246647,-480.0,0.00014175,2]
[384809006,1757566246656,-480.0,0.00014175,2]
[384809007,1757566246666,-480.0,0.00014175,2]
[384809008,1757566246676,-484.59405022,0.00014175,2]
[384809009,1757566246685,-480.0,0.00014175,2]
[384809010,1757566246695,-480.0,0.00014175,2]
[384809011,1757566246705,-480.0,0.00014175,2]
[384809012,1757566246714,-480.0,0.00014175,2]
[384809013,1757566246724,-480.0,0.00014175,2]
[384809014,1757566246733,-480.0,0.00014175,2]
[384809015,1757566246743,-521.91480768,0.00014175,2]
[384809016,1757566246752,-481.60293997,0.00014175,2]
[384809017,1757566246762,-484.01450246,0.00014175,2]
[384809018,1757566246771,-480.0,0.00014175,2]
[384809019,1757566246781,-480.0,0.00014175,2]
[384809020,1757566246791,-482.96175924,0.00014175,2]
[384809021,1757566246800,-480.0,0.00014175,2]
[384809022,1757566246810,-497.35991535,0.00014175,2]
[384809023,1757566246820,-480.0,0.00014175,2]
[384809024,1757566246830,-151.09922594,0.00014175,2]
[384809025,1757566246840,-577.26,0.00014178,2]
[384809026,1757566246849,-173.25523764,0.00014178,2]
[384809027,1757566246859,-270.72113977,0.00014178,2]
[384809028,1757566246868,-832.19,0.00014178,2]
[384809029,1757566246878,-562.29,0.00014178,2]
[384809030,1757566246887,-480.0,0.00014178,2]
[384809031,1757566246897,-494.87028104,0.00014178,2]
[384809032,1757566246906,-568.47,0.00014178,2]
[384809033,1757566246916,-480.0,0.00014178,2]
[384809034,1757566246925,-480.0,0.00014178,2]
[384809035,1757566246934,-285.15773474,0.00014178,2]
[384809036,1757566246943,-480.0,0.00014178,2]
[384809037,1757566246952,-480.0,0.00014178,2]
[384809038,1757566246962,-480.0,0.00014178,2]
[384809039,1757566246972,-612.54,0.00014178,2]
[384809040,1757566246982,-480.0,0.00014179,2]
[384809041,1757566246991,-480.0,0.00014179,2]
[384809042,1757566247000,-480.0,0.00014179,2]
[384809043,1757566247010,-482.31260379,0.00014179,2]
[384809044,1757566247019,-480.0,0.00014179,2]
[384809045,1757566247029,-480.0,0.00014179,2]
[384809046,1757566247039,-480.0,0.00014179,2]
[384809047,1757566247049,-480.0,0.00014179,2]
[384809048,1757566247058,-532.48,0.00014179,2]
[384809049,1757566247068,-480.0,0.00014179,2]
[384809050,1757566247077,-480.0,0.00014179,2]
[384809051,1757566247087,-408.3751055,0.00014179,2]
[384809052,1757566247097,-480.0,0.00014179,2]
[384809053,1757566247107,-480.0,0.00014179,2]
[384809054,1757566247116,-480.0,0.00014179,2]
[384809055,1757566247125,-480.0,0.00014179,2]
[384809056,1757566247135,-482.68662179,0.00014179,2]
[384809057,1757566247144,-480.0,0.00014179,2]
[384809058,1757566247153,-480.0,0.00014179,2]
[384809059,1757566247162,-481.99828684,0.00014179,2]
[384809060,1757566247171,-1051.95,0.00014179,2]
[384809061,1757566247181,-481.68149042,0.00014179,2]
[384809062,1757566247190,-480.0,0.00014179,2]
[384809063,1757566247200,-480.0,0.0001418,2]
[384809064,1757566247213,-480.0,0.0001418,2]
[384809065,1757566247222,-480.0,0.0001418,2]
[384809066,1757566247232,-245.75701932,0.0001418,2]
[384809067,1757566247241,-480.0,0.0001418,2]
[384809068,1757566247250,-494.26,0.0001418,2]
[384809069,1757566247260,-480.0,0.0001418,2]
[384809070,1757566247269,-480.0,0.0001418,2]
[384809071,1757566247278,-482.96616648,0.0001418,2]
[384809072,1757566247287,-269.40107164,0.0001418,2]
[384809073,1757566247297,-480.0,0.0001418,2]
[384809074,1757566247307,-480.0,0.0001418,2]
[384809075,1757566247316,-480.0,0.0001418,2]
[384809076,1757566247326,-480.0,0.0001418,2]
[384809077,1757566247335,-480.0,0.0001418,2]
[384809078,1757566247345,-480.0,0.0001418,2]
[384809079,1757566247355,-480.0,0.0001418,2]
[384809080,1757566247365,-480.0,0.0001418,2]
[384809081,1757566247374,-480.0,0.0001418,2]
[384809082,1757566247384,-480.0,0.0001418,2]
[384809083,1757566247393,-561.93,0.0001418,2]
[384809084,1757566247402,-480.0,0.0001418,2]
[384809085,1757566247412,-480.0,0.0001418,2]
[384809086,1757566247421,-480.0,0.0001418,2]
[384809087,1757566247430,-482.85,0.0001418,2]
[384809088,1757566247439,-480.0,0.0001418,2]
[384809089,1757566247449,-480.0,0.0001418,2]
[384809090,1757566247458,-480.0,0.0001418,2]
[384809091,1757566247468,-480.0,0.0001418,2]
[384809092,1757566247477,-977.56,0.0001418,2]
[384809093,1757566247486,-480.0,0.0001418,2]
[384809094,1757566247496,-480.0,0.0001418,2]
[384809095,1757566247505,-480.0,0.0001418,2]
[384809096,1757566247514,-480.0,0.0001418,2]
[384809097,1757566247524,-480.0,0.0001418,2]
[384809098,1757566247533,-480.0,0.0001418,2]
[384809099,1757566247543,-200.0,0.00014181,2]
[384809100,1757566247553,-789.74,0.00014181,2]
[384809101,1757566247562,-2048.75,0.00014181,2]
[384809102,1757566247572,-480.0,0.00014181,2]
[384809103,1757566247582,-480.0,0.00014181,2]
[384809104,1757566247592,-480.0,0.00014181,2]
[384809105,1757566247601,-480.0,0.00014181,2]
[384809106,1757566247611,-178.0,0.00014181,2]
[384809107,1757566247621,-480.0,0.00014182,2]
[384809108,1757566247630,-482.60210406,0.00014182,2]
[384809109,1757566247640,-480.0,0.00014182,2]
[384809110,1757566247650,-480.0,0.00014182,2]
[384809111,1757566247659,-234.21831187,0.00014182,2]
[384809112,1757566247669,-480.0,0.00014182,2]
[384809113,1757566247679,-480.0,0.00014182,2]
[384809114,1757566247689,-480.0,0.00014182,2]
[384809115,1757566247699,-480.0,0.00014182,2]
[384809116,1757566247709,-426.32117359,0.00014182,2]
[384809117,1757566247718,-480.0,0.00014182,2]
[384809118,1757566247728,-481.13046401,0.00014182,2]
[384809119,1757566247738,-592.58,0.00014182,2]
[384809120,1757566247747,-483.06228816,0.00014182,2]
[384809121,1757566247757,-480.0,0.00014182,2]
[384809122,1757566247766,-480.0,0.00014182,2]
[384809123,1757566247776,-501.08,0.00014182,2]
[384809124,1757566247786,-1000.0,0.00014182,2]
[384809125,1757566247795,-461.61542816,0.00014182,2]
[384809126,1757566247805,-480.0,0.00014182,2]
[384809127,1757566247815,-484.34304218,0.00014182,2]
[384809128,1757566247824,-480.87272331,0.00014182,2]
[384809129,1757566247834,-480.0,0.00014182,2]
[384809130,1757566247843,-480.0,0.00014182,2]
[384809131,1757566247852,-481.47677,0.00014182,2]
[384809132,1757566247862,-480.0,0.00014182,2]
[384809133,1757566247871,-480.0,0.00014182,2]
[384809134,1757566247881,-480.0,0.00014182,2]
[384809135,1757566247891,-481.17029771,0.00014182,2]
[384809136,1757566247901,-516.58102096,0.00014182,2]
[384809137,1757566247910,-480.0,0.00014182,2]
[384809138,1757566247920,-480.0,0.00014182,2]
[384809139,1757566247930,-480.0,0.00014182,2]
[384809140,1757566247940,-480.0,0.00014182,2]
[384809141,1757566247949,-219.76359229,0.00014182,2]
[384809142,1757566247959,-480.0,0.00014182,2]
[384809143,1757566247968,-480.0,0.00014182,2]
[384809144,1757566248057,-480.0,0.00014182,2]
[384809145,1757566248068,-480.0,0.00014182,2]
[384809146,1757566248078,-483.85052355,0.00014182,2]
[384809147,1757566248087,-480.0,0.00014182,2]
[384809148,1757566248097,-480.0,0.00014182,2]
[384809149,1757566248106,-480.0,0.00014182,2]
[384809150,1757566248116,-480.0,0.00014182,2]
[384809151,1757566248126,-480.0,0.00014182,2]
[384809152,1757566248135,-488.18628798,0.00014182,2]
[384809153,1757566248145,-480.0,0.00014182,2]
[384809154,1757566248155,-481.08892187,0.00014182,2]
[384809155,1757566248165,-480.0,0.00014182,2]
[384809156,1757566248175,-480.0,0.00014182,2]
[384809157,1757566248185,-481.49817808,0.00014182,2]
[384809158,1757566248195,-480.0,0.00014182,2]
[384809159,1757566248205,-480.0,0.00014182,2]
[384809160,1757566248220,-480.0,0.00014182,2]
[384809161,1757566248230,-480.0,0.00014182,2]
[384809162,1757566248240,-482.10976065,0.00014182,2]
[384809163,1757566248249,-480.0,0.00014182,2]
[384809164,1757566248260,-480.0,0.00014182,2]
[384809165,1757566248269,-480.0,0.00014182,2]
[384809166,1757566248278,-480.0,0.00014182,2]
[384809167,1757566248288,-523.11413842,0.00014182,2]
[384809168,1757566248298,-480.0,0.00014182,2]
[384809169,1757566248308,-480.0,0.00014182,2]
[384809170,1757566248317,-480.0,0.00014182,2]
[384809171,1757566248326,-480.0,0.00014182,2]
[384809172,1757566248336,-480.0,0.00014182,2]
[384809173,1757566248345,-481.85718522,0.00014182,2]
[384809174,1757566248355,-480.0,0.00014182,2]
[384809175,1757566248365,-480.0,0.00014182,2]
[384809176,1757566248374,-480.0,0.00014182,2]
[384809177,1757566248385,-480.0,0.00014182,2]
[384809178,1757566248394,-480.0,0.00014182,2]
[384809179,1757566248403,-487.61023768,0.00014182,2]
[384809180,1757566248412,-480.0,0.00014182,2]
[384809181,1757566248422,-480.0,0.00014182,2]
[384809182,1757566248432,-480.0,0.00014182,2]
[384809183,1757566248442,-491.17451564,0.00014182,2]
[384809184,1757566248451,-444.59722136,0.00014182,2]
[384809185,1757566248460,-1021.74152665,0.00014182,2]
[384809186,1757566248470,-482.95994704,0.00014182,2]
[384809187,1757566248480,-480.0,0.00014182,2]
[384809188,1757566248489,-480.0,0.00014182,2]
[384809189,1757566248499,-480.0,0.00014182,2]
[384809190,1757566248508,-484.9879967,0.00014182,2]
[384809191,1757566248518,-485.69275312,0.00014182,2]
[384809192,1757566248528,-480.0,0.00014182,2]
[384809193,1757566248538,-483.92336568,0.00014182,2]
[384809194,1757566248547,-487.27569081,0.00014182,2]
[384809195,1757566248557,-480.0,0.00014182,2]
[384809196,1757566248566,-480.0,0.00014182,2]
[384809197,1757566248576,-485.41598258,0.00014182,2]
[384809198,1757566248586,-480.0,0.00014182,2]
[384809199,1757566248595,-480.0,0.00014182,2]
[384809200,1757566248604,-480.0,0.00014182,2]
[384809201,1757566248614,-480.0,0.00014182,2]
[384809202,1757566248623,-480.0,0.00014182,2]
[384809203,1757566248633,-334.77979569,0.00014182,2]
[384809204,1757566248643,-480.0,0.00014182,2]
[384809205,1757566248653,-480.0,0.00014182,2]
[384809206,1757566248663,-483.97696407,0.00014182,2]
[384809207,1757566248673,-480.0,0.00014182,2]
[384809208,1757566248683,-480.0,0.00014182,2]
[384809209,1757566248693,-481.81968988,0.00014182,2]
[384809210,1757566248702,-480.0,0.00014182,2]
[384809211,1757566248712,-482.66954497,0.00014182,2]
[384809212,1757566248722,-480.0,0.00014182,2]
[384809213,1757566248732,-455.64765956,0.00014182,2]
[384809214,1757566248741,-480.0,0.00014182,2]
[384809215,1757566248751,-480.0,0.00014182,2]
[384809216,1757566248761,-480.0,0.00014182,2]
[384809217,1757566248771,-480.0,0.00014182,2]
[384809218,1757566248780,-480.0,0.00014182,2]
[384809219,1757566248789,-480.0,0.00014182,2]
[384809220,1757566248799,-480.0,0.00014182,2]
[384809221,1757566248808,-480.0,0.00014182,2]
[384809222,1757566248817,-480.0,0.00014182,2]
[384809223,1757566248827,-244.97077526,0.00014182,2]
[384809224,1757566248836,-480.0,0.00014182,2]
[384809225,1757566248846,-482.05539428,0.00014182,2]
[384809226,1757566248855,-484.63985842,0.00014182,2]
[384809227,1757566248864,-480.0,0.00014182,2]
[384809228,1757566248874,-480.0,0.00014182,2]
[384809229,1757566248883,-480.0,0.00014182,2]
[384809230,1757566248892,-480.0,0.00014182,2]
[384809231,1757566248902,-488.48397421,0.00014182,2]
[384809232,1757566248912,-480.0,0.00014182,2]
[384809233,1757566248922,-480.0,0.00014182,2]
[384809234,1757566248931,-482.08458963,0.00014182,2]
[384809235,1757566248941,-483.15537349,0.00014182,2]
[384809236,1757566248951,-480.0,0.00014182,2]
[384809237,1757566248960,-480.0,0.00014182,2]
[384809238,1757566248970,-480.0,0.00014182,2]
[384809239,1757566248979,-482.75893996,0.00014182,2]
[384809240,1757566248989,-284.07936841,0.00014182,2]
[384809241,1757566248998,-485.62420835,0.00014182,2]
[384809242,1757566249007,-480.79448079,0.00014182,2]
[384809243,1757566249017,-480.0,0.00014182,2]
[384809244,1757566249027,-480.0,0.00014182,2]
[384809245,1757566249036,-480.0,0.00014182,2]
[384809246,1757566249046,-480.0,0.00014182,2]
[384809247,1757566249056,-488.73917229,0.00014182,2]
[384809248,1757566249065,-545.27,0.00014183,2]
[384809249,1757566249075,-200.0,0.00014184,2]
[384809250,1757566249084,-484.0102053,0.00014184,2]
[384809251,1757566249093,-480.0,0.00014184,2]
[384809252,1757566249103,-480.0,0.00014184,2]
[384809253,1757566249112,-161.10855949,0.00014184,2]
[384809254,1757566249122,-480.0,0.00014184,2]
[384809255,1757566249131,-550.18824839,0.00014184,2]
[384809256,1757566249141,-480.0,0.00014184,2]
[384809257,1757566249150,-480.0,0.00014184,2]
[384809258,1757566249160,-480.0,0.00014184,2]
[384809259,1757566249170,-480.0,0.00014184,2]
[384809260,1757566249180,-480.0,0.00014184,2]
[384809261,1757566249189,-480.0,0.00014184,2]
[384809262,1757566249199,-480.0,0.00014184,2]
[384809263,1757566249212,-545.27,0.00014184,2]
[384809264,1757566249222,-480.0,0.00014184,2]
[384809265,1757566249232,-305.12,0.00014184,2]
[384809266,1757566249242,-483.01045115,0.00014184,2]
[384809267,1757566249252,-480.0,0.00014184,2]
[384809268,1757566249262,-482.98291377,0.00014185,2]
[384809269,1757566249272,-481.8082739,0.00014185,2]
[384809270,1757566249282,-480.0,0.00014185,2]
[384809271,1757566249291,-480.0,0.00014185,2]
[384809272,1757566249300,-480.0,0.00014185,2]
[384809273,1757566249310,-486.72635861,0.00014185,2]
[384809274,1757566249319,-482.04903115,0.00014185,2]
[384809275,1757566249328,-614.20193576,0.00014185,2]
[384809276,1757566249338,-481.92998725,0.00014185,2]
[384809277,1757566249347,-480.0,0.00014185,2]
[384809278,1757566249356,-480.0,0.00014185,2]
[384809279,1757566249366,-480.0,0.00014185,2]
[384809280,1757566249375,-474.23164805,0.00014185,2]
[384809281,1757566249384,-545.27,0.00014185,2]
[384809282,1757566249393,-545.27,0.00014189,2]
[384809283,1757566249403,-545.27,0.00014189,2]
[384809284,1757566249412,-545.27,0.00014189,2]
[384809285,1757566249421,-545.27,0.00014189,2]
[384809286,1757566249431,-545.27,0.00014189,2]
[384809287,1757566249440,-545.39426351,0.00014189,2]
[384809288,1757566249450,-300.0,0.00014195,2]
[384809289,1757566249459,-300.0,0.00014195,2]
[384809290,1757566249469,-300.0,0.00014195,2]
[384809291,1757566249479,-300.0,0.00014195,2]
[384809292,1757566249488,-300.0,0.00014195,2]
[384809293,1757566249498,-300.0,0.00014195,2]
[384809294,1757566249508,-300.0,0.00014195,2]
[384809295,1757566249517,-300.0,0.00014195,2]
[384809296,1757566249527,-300.0,0.00014195,2]
[384809297,1757566249536,-300.0,0.00014195,2]
[384809298,1757566249545,-300.0,0.00014195,2]
[384809299,1757566249556,-300.0,0.00014195,2]
[384809300,1757566249565,-300.0,0.00014195,2]
[384809301,1757566249575,-300.0,0.00014195,2]
[384809302,1757566249584,-300.0,0.00014195,2]
[384809303,1757566249593,-600.0,0.00014195,2]
[384809304,1757566249605,-275.856,0.00014204,2]
[384809305,1757566249614,-1721.40511384,0.00014214,2]
[384809306,1757566249624,-485.37,0.00014448,2]
[384809307,1757566249641,-4340.54,0.00014448,2]
[384809308,1757566249651,-480.0,0.00014449,2]
[384809309,1757566249667,-480.0,0.00014449,2]
[384809310,1757566249677,-480.0,0.00014449,2]
[384809311,1757566249687,-483.7,0.00014449,2]
[384809312,1757566249697,-577.26,0.00014452,2]
[384809313,1757566249706,-832.19,0.00014452,2]
[384809314,1757566249716,-562.29,0.00014452,2]
[384809315,1757566249725,-568.47,0.00014452,2]
[384809316,1757566249735,-480.0,0.00014452,2]
[384809317,1757566249820,-480.0,0.00014453,2]
[384809318,1757566249831,-480.0,0.00014453,2]
[384809319,1757566249841,-480.0,0.00014453,2]
[384809320,1757566249851,-1051.95,0.00014453,2]
[384809321,1757566249861,-480.0,0.00014453,2]
[384809322,1757566249871,-3000.0,0.00014454,2]
[384809323,1757566249881,-480.0,0.00014454,2]
[384809324,1757566249891,-480.0,0.00014454,2]
[384809325,1757566249901,-585.26716046,0.00014454,2]
[384809326,1757566249912,-482.85,0.00014454,2]
[384809327,1757566249922,-157.46684292,0.00014454,2]
[384809328,1757566249933,-977.56,0.00014454,2]
[384809329,1757566249943,-480.0,0.00014454,2]
[384809330,1757566249953,-480.0,0.00014454,2]
[384809331,1757566249964,-154.40786856,0.00014454,2]
[384809332,1757566249973,-789.74,0.00014455,2]
[384809333,1757566249983,-2048.75,0.00014455,2]
[384809334,1757566249993,-480.0,0.00014455,2]
[384809335,1757566250004,-480.0,0.00014455,2]
[384809336,1757566250013,-480.0,0.00014456,2]
[384809337,1757566250024,-480.0,0.00014456,2]
[384809338,1757566250033,-486.27974761,0.00014456,2]
[384809339,1757566250042,-153.19,0.00014456,2]
[384809340,1757566250052,-480.0,0.00014456,2]
[384809341,1757566250062,-592.58,0.00014456,2]